bitfinex/quotes_SOLUSD_20250210
["timestamp","ask_amount","ask_price","bid_price","bid_amount"]
[1739164345522,7.70519897,201.75,201.73,0.12549]
[1739164345823,7.70519897,201.75,201.74,17.37734853]
[1739164346019,7.70519897,201.75,201.74,17.50283853]
[1739164346203,7.70519897,201.75,201.74,26.49735791]
[1739164347123,0.03,201.81,201.74,26.49735791]
[1739164347124,0.03,201.81,201.76,0.12549]
[1739164347420,0.03,201.81,201.8,22.40636791]
[1739164348031,0.03,201.81,201.8,24.90350532]
[1739164348205,0.03,201.81,201.8,24.03486791]
[1739164348902,0.03,201.81,201.8,24.16035791]
[1739164350202,0.03,201.83,201.82,20.0]
[1739164350408,0.03,201.83,201.82,32.14378831]
[1739164351212,0.03,201.83,201.82,33.14378831]
[1739164351414,0.03,201.84,201.83,13.66282853]
[1739164351615,0.03,201.84,201.83,31.40088729]
[1739164352232,0.03,201.84,201.83,35.36458729]
[1739164353012,0.03,201.84,201.83,26.49555791]
[1739164353225,0.03,201.84,201.83,35.36458729]
[1739164353530,0.03,201.86,201.85,21.0]
[1739164353735,8.86902938,201.99,201.91,20.0]
[1739164353942,8.86902938,201.97,201.91,20.0]
[1739164354134,8.86902938,201.97,201.92,13.53733853]
[1739164354646,8.86902938,201.98,201.92,13.53733853]
[1739164355014,8.86902938,201.97,201.92,13.53733853]
[1739164356216,8.86902938,201.97,201.88,3.9627]
[1739164356217,8.86902938,201.94,201.87,8.86902938]
[1739164356737,8.86902938,201.93,201.9,13.53733853]
[1739164357417,8.86902938,201.94,201.9,13.53733853]
[1739164358037,8.86902938,201.96,201.9,23.14914372]
[1739164358218,8.86902938,201.98,201.93,0.12549]
[1739164358933,8.86902938,201.99,201.94,0.12549]
[1739164359114,8.86902938,202.01,201.95,0.12549]
[1739164359313,0.03,202.02,201.98,0.12549]
[1739164359526,0.03,202.02,201.98,8.99451938]
[1739164359713,0.03,202.02,201.99,13.41184853]
[1739164359910,0.03,202.02,202.01,22.53185791]
[1739164361017,0.03,202.02,202.01,20.0]
[1739164361439,0.03,202.02,202.01,33.41184853]
[1739164361937,0.03,202.02,202.01,13.41184853]
[1739164362128,0.03,202.02,202.01,33.41184853]
[1739164362323,0.03,202.02,202.01,33.53733853]
[1739164362635,8.85782822,202.06,202.02,13.41184853]
[1739164363023,8.86902938,202.07,202.03,0.12549]
[1739164363230,8.86902938,202.1,202.04,13.41184853]
[1739164364837,8.86902938,202.1,202.04,8.86902938]
[1739164365524,8.86902938,202.1,202.04,3.9595]
[1739164365923,8.86902938,202.09,202.04,3.9595]
[1739164366129,8.86902938,202.1,202.04,3.9595]
[1739164366348,0.03,202.1,202.05,8.99451938]
[1739164366633,0.03,202.1,202.07,0.12549]
[1739164367042,0.03,202.1,202.08,3.9588]
[1739164367855,0.03,202.1,202.05,3.9594]
[1739164368420,0.03,202.1,202.06,13.53733853]
[1739164368832,8.86902938,202.09,202.03,3.9596]
[1739164369142,8.86902938,202.08,202.03,3.9596]
[1739164369337,8.86902938,202.08,202.03,17.37144853]
[1739164371037,0.03,202.1,202.06,8.99451938]
[1739164371238,0.03,202.1,202.06,28.99451938]
[1739164371447,8.86902938,202.09,202.03,8.86902938]
[1739164371651,8.86902938,202.07,202.02,3.9598]
[1739164371830,8.86902938,202.07,201.97,7.7379]
[1739164371831,0.03,202.1,201.97,7.7379]
[1739164372151,0.03,202.1,201.98,3.9607]
[1739164372350,1.95802129,202.1,201.98,3.9607]
[1739164372648,22.5686,202.09,201.98,3.9607]
[1739164372837,8.86902938,202.02,201.98,3.9607]
[1739164373023,8.86902938,202.04,201.98,3.9607]
[1739164374248,3.959,202.07,201.97,13.53733853]
[1739164374249,8.86902938,202.02,201.97,13.53733853]
[1739164374458,8.86902938,201.99,201.93,3.9617]
[1739164374635,8.86902938,201.98,201.93,3.9617]
[1739164375037,8.86902938,201.99,201.93,3.9617]
[1739164375543,8.86902938,202.0,201.96,2.0]
[1739164375931,8.86902938,202.02,201.96,2.0]
[1739164376253,8.86902938,202.03,201.99,1.0]
[1739164376459,8.86902938,202.08,202.05,1.0]
[1739164376751,8.86902938,202.06,202.02,1.0]
[1739164377129,8.86902938,202.08,202.04,1.0]
[1739164377526,8.86902938,202.09,202.06,1.0]
[1739164377750,8.89902938,202.1,202.08,1.0]
[1739164378542,0.03,202.1,202.09,1.0]
[1739164378847,0.03,202.1,202.08,1.0]
[1739164379352,0.03,202.1,202.09,1.0]
[1739164379569,0.03,202.1,202.08,4.9587]
[1739164379932,0.03,202.1,202.09,1.0]
[1739164380364,6.0262,202.21,202.1,0.12549]
[1739164380541,6.0262,202.21,202.09,34.66282853]
[1739164380542,6.0262,202.21,202.16,1.0]
[1739164380743,3.9859,202.23,202.16,1.0]
[1739164380948,3.9859,202.23,202.14,1.0]
[1739164381144,14.12015938,202.18,202.14,1.0]
[1739164381682,14.12015938,202.15,202.12,1.0]
[1739164381884,14.12015938,202.17,202.12,1.0]
[1739164382086,14.12015938,202.16,202.12,1.0]
[1739164382280,14.12015938,202.2,202.16,1.0]
[1739164382585,14.12015938,202.21,202.18,2.0]
[1739164382905,14.12015938,202.21,202.18,1.0]
[1739164383074,14.12015938,202.2,202.18,1.0]
[1739164383460,14.12015938,202.19,202.16,1.0]
[1739164383684,14.12015938,202.17,202.14,1.0]
[1739164383866,14.12015938,202.16,202.12,1.0]
[1739164384061,14.12015938,202.17,202.13,1.0]
[1739164384287,14.12015938,202.18,202.14,1.0]
[1739164384476,14.12015938,202.19,202.16,1.0]
[1739164384788,14.12015938,202.19,202.14,1.0]
[1739164384963,14.12015938,202.18,202.14,1.0]
[1739164385159,14.12015938,202.19,202.17,1.0]
[1739164385555,14.12015938,202.18,202.13,1.0]
[1739164385760,14.12015938,202.19,202.14,1.0]
[1739164386259,0.03,202.23,202.16,1.0]
[1739164386260,14.12015938,202.2,202.16,1.0]
[1739164386681,14.12015938,202.19,202.15,1.0]
[1739164386883,14.12015938,202.17,202.13,1.0]
[1739164387282,14.12015938,202.16,202.13,1.0]
[1739164387683,14.12015938,202.15,202.11,1.0]
[1739164387866,14.12015938,202.14,202.11,1.0]
[1739164388200,14.12015938,202.13,202.09,1.0]
[1739164388493,13.8462,202.22,202.08,1.0]
[1739164388494,14.12015938,202.11,202.08,1.0]
[1739164388679,14.12015938,202.1,202.05,2.0]
[1739164388868,14.12015938,202.09,202.05,2.0]
[1739164389677,14.12015938,202.1,202.05,2.0]
[1739164390187,14.12015938,202.08,202.03,2.0]
[1739164390405,14.12015938,202.07,202.03,1.0]
[1739164390768,14.12015938,202.07,202.03,2.0]
[1739164390968,3.9583,202.11,202.03,2.0]
[1739164391188,14.12015938,202.08,202.03,2.0]
[1739164391390,14.12015938,202.08,202.05,1.0]
[1739164391592,14.12015938,202.09,202.05,1.0]
[1739164391980,14.12015938,202.1,202.06,1.0]
[1739164392884,14.12015938,202.07,202.03,1.0]
[1739164393267,14.12015938,202.06,202.03,1.0]
[1739164393480,14.12015938,202.04,202.0,1.0]
[1739164393891,14.12015938,202.05,202.01,1.0]
[1739164394095,9.8942,202.14,202.01,1.0]
[1739164394096,14.12015938,202.06,202.01,1.0]
[1739164396500,14.12015938,202.06,202.02,1.0]
[1739164397188,14.12015938,202.04,202.02,1.0]
[1739164397497,14.12015938,202.04,202.0,1.0]
[1739164398205,14.12015938,202.05,202.01,1.0]
[1739164398499,14.12015938,202.06,202.02,1.0]
[1739164400280,14.12015938,202.07,202.03,1.0]
[1739164400481,14.12015938,202.1,202.07,1.0]
[1739164401715,8.82694946,202.12,202.09,1.0]
[1739164402214,8.82694946,202.12,202.11,1.0]
[1739164402418,8.82694946,202.2,202.15,2.0]
[1739164402629,8.82694946,202.2,202.17,1.0]
[1739164404128,8.82694946,202.22,202.17,5.9569]
[1739164404334,8.85694946,202.23,202.19,2.0]
[1739164404631,8.82694946,202.22,202.19,2.0]
[1739164406092,0.03,202.23,202.19,5.9565]
[1739164406734,0.03,202.23,202.19,2.0]
[1739164407610,0.03,202.23,202.19,5.9566]
[1739164408302,0.03,202.23,202.19,2.0]
[1739164408507,8.82694946,202.22,202.19,1.0]
[1739164409428,8.82694946,202.22,202.19,2.0]
[1739164410034,8.85694946,202.23,202.19,2.0]
[1739164410737,8.85694946,202.23,202.19,5.9566]
[1739164410738,0.03,202.23,202.19,5.9566]
[1739164411108,0.03,202.23,202.19,14.78354946]
[1739164411737,0.03,202.23,202.19,2.0]
[1739164412029,8.85694946,202.23,202.19,2.0]
[1739164412520,8.85694946,202.23,202.19,5.9566]
[1739164412721,0.03,202.23,202.19,5.9566]
[1739164413113,0.03,202.23,202.19,2.0]
[1739164413309,8.85694946,202.23,202.19,2.0]
[1739164413939,0.03,202.23,202.19,2.0]
[1739164414546,8.85694946,202.23,202.19,2.0]
[1739164414844,8.85694946,202.23,202.19,1.0]
[1739164414845,8.82694946,202.22,202.19,1.0]
[1739164415203,8.85694946,202.23,202.19,2.0]
[1739164415538,8.82694946,202.22,202.19,1.0]
[1739164416018,8.82694946,202.22,202.19,2.0]
[1739164416421,8.82694946,202.22,202.19,1.0]
[1739164417838,12.81274946,202.23,202.19,2.0]
[1739164418044,8.85694946,202.23,202.19,2.0]
[1739164418738,0.03,202.23,202.19,5.9566]
[1739164420616,0.03,202.23,202.19,14.78354946]
[1739164421909,0.03,202.23,202.2,8.82694946]
[1739164422109,0.03,202.23,202.2,26.32068799]
[1739164423022,8.85694946,202.28,202.27,1.0]
[1739164423023,0.03,202.28,202.27,1.0]
[1739164423233,0.03,202.28,202.27,9.82694946]
[1739164423619,0.03,202.28,202.27,23.36428799]
[1739164423941,0.03,202.28,202.27,9.82694946]
[1739164424115,0.03,202.28,202.27,1.0]
[1739164426029,0.03,202.28,202.26,1.0]
[1739164428644,0.03,202.28,202.27,1.0]
[1739164431635,0.03,202.28,202.26,1.0]
[1739164437759,8.85694946,202.28,202.26,1.0]
[1739164438339,0.03,202.28,202.26,1.0]
[1739164440471,0.03,202.28,202.24,1.0]
[1739164440472,8.82694946,202.27,202.24,1.0]
[1739164440675,0.03,202.28,202.24,1.0]
[1739164440676,8.82694946,202.26,202.24,1.0]
[1739164440972,8.82694946,202.27,202.24,1.0]
[1739164442750,8.82694946,202.26,202.24,1.0]
[1739164442945,8.82694946,202.25,202.23,0.063]
[1739164443558,8.82694946,202.27,202.23,0.063]
[1739164443868,8.82694946,202.27,202.24,2.0]
[1739164444047,0.03,202.28,202.27,4.9551]
[1739164444687,0.03,202.28,202.27,1.0]
[1739164444885,0.03,202.28,202.27,4.9551]
[1739164445463,0.03,202.28,202.27,1.0]
[1739164446163,0.03,202.28,202.27,4.9551]
[1739164446662,0.03,202.28,202.27,1.0]
[1739164448288,8.85694946,202.28,202.25,1.0]
[1739164448576,0.03,202.28,202.27,2.0]
[1739164451278,0.03,202.28,202.27,5.9551]
[1739164453261,0.03,202.28,202.27,2.0]
[1739164453587,0.03,202.28,202.27,1.0]
[1739164454185,0.03,202.28,202.25,1.0]
[1739164454186,8.85694946,202.28,202.25,1.0]
[1739164455882,8.85694946,202.28,202.25,2.0]
[1739164456083,8.85694946,202.28,202.27,1.0]
[1739164456084,0.03,202.28,202.27,1.0]
[1739164456252,0.03,202.28,202.27,2.0]
[1739164457768,0.03,202.28,202.27,1.0]
[1739164458068,0.03,202.28,202.27,2.0]
[1739164459086,0.03,202.28,202.27,19.36694853]
[1739164459298,0.03,202.28,202.27,5.9551]
[1739164460477,0.03,202.28,202.27,28.31938799]
[1739164462975,0.03,202.28,202.27,19.36694853]
[1739164463173,0.03,202.28,202.27,28.19389799]
[1739164463372,0.03,202.28,202.27,28.31938799]
[1739164464088,0.03,202.28,202.27,19.36694853]
[1739164464973,0.03,202.28,202.27,22.0]
[1739164465174,0.03,202.28,202.27,25.9551]
[1739164466083,0.03,202.28,202.27,39.36694853]
[1739164467281,0.03,202.28,202.27,49.92338799]
[1739164468576,0.03,202.28,202.27,50.04887799]
[1739164469093,8.82694946,202.41,202.39,1.0]
[1739164470018,8.85694946,202.42,202.39,1.0]
[1739164470313,8.82694946,202.4,202.37,1.0]
[1739164470621,8.82694946,202.38,202.37,1.0]
[1739164471480,8.82694946,202.38,202.35,1.0]
[1739164471686,8.82694946,202.36,202.35,1.0]
[1739164472894,8.82694946,202.37,202.35,1.0]
[1739164473091,8.82694946,202.38,202.35,2.0]
[1739164473293,8.82694946,202.38,202.35,1.0]
[1739164473693,5.63432882,202.38,202.35,1.0]
[1739164473913,5.66432882,202.38,202.35,1.0]
[1739164474707,5.66432882,202.38,202.35,2.0]
[1739164475207,0.03,202.38,202.35,2.0]
[1739164475813,5.66432882,202.38,202.35,2.0]
[1739164477617,5.66432882,202.38,202.35,1.0]
[1739164477913,5.66432882,202.38,202.35,2.0]
[1739164478213,5.66432882,202.38,202.35,1.0]
[1739164478426,5.63432882,202.36,202.35,1.0]
[1739164478711,5.63432882,202.36,202.33,1.0]
[1739164478928,5.63432882,202.34,202.33,1.0]
[1739164479592,5.63432882,202.34,202.31,1.0]
[1739164479819,3.9829,202.38,202.31,1.0]
[1739164479820,5.63432882,202.32,202.31,1.0]
[1739164480607,5.63432882,202.33,202.31,1.0]
[1739164481121,5.63432882,202.32,202.29,1.0]
[1739164481301,5.63432882,202.3,202.26,1.0]
[1739164481599,5.63432882,202.29,202.26,1.0]
[1739164483020,5.63432882,202.28,202.25,1.0]
[1739164485412,5.63432882,202.27,202.25,1.0]
[1739164485813,5.63432882,202.29,202.25,1.0]
[1739164486422,5.63432882,202.29,202.25,1.063]
[1739164489317,5.63432882,202.27,202.25,1.063]
[1739164491120,5.63432882,202.26,202.25,1.063]
[1739164491928,5.63432882,202.27,202.25,1.063]
[1739164492227,5.63432882,202.28,202.25,1.063]
[1739164493129,5.63432882,202.27,202.25,0.063]
[1739164493424,22.53731528,202.32,202.25,0.063]
[1739164493425,5.63432882,202.26,202.25,0.063]
[1739164495707,9.58962882,202.26,202.25,0.063]
[1739164496536,32.1269441,202.26,202.25,0.063]
[1739164497234,9.58962882,202.26,202.25,0.063]
[1739164498134,32.1269441,202.26,202.25,0.063]
[1739164499436,20.0,202.24,202.23,0.063]
[1739164499622,48.1716441,202.24,202.13,1.0]
[1739164499824,5.63432882,202.15,202.13,1.0]
[1739164500214,5.63432882,202.14,202.11,1.0]
[1739164500551,5.63432882,202.13,202.11,1.0]
[1739164500723,5.63432882,202.12,202.09,1.0]
[1739164500918,5.63432882,202.12,202.07,1.063]
[1739164501130,5.63432882,202.11,202.07,1.063]
[1739164501305,5.63432882,202.15,202.12,1.0]
[1739164501504,5.63432882,202.16,202.12,1.0]
[1739164501711,5.63432882,202.13,202.08,1.0]
[1739164501944,5.63432882,202.09,202.07,0.063]
[1739164502116,0.12549,202.18,202.07,0.063]
[1739164502117,20.0,202.15,202.07,0.063]
[1739164502316,5.63432882,202.13,202.09,1.0]
[1739164502540,5.63432882,202.13,202.11,1.0]
[1739164502743,5.63432882,202.12,202.09,1.0]
[1739164502944,5.63432882,202.13,202.09,1.0]
[1739164503343,5.63432882,202.15,202.1,4.9584]
[1739164503521,5.63432882,202.15,202.12,1.0]
[1739164503826,5.5556,202.22,202.14,1.0]
[1739164504024,5.63432882,202.2,202.16,1.0]
[1739164504228,3.86,202.25,202.16,1.0]
[1739164504229,5.63432882,202.21,202.16,1.0]
[1739164504921,5.63432882,202.2,202.16,1.0]
[1739164505547,5.63432882,202.2,202.16,4.9572]
[1739164505724,8.81871672,202.2,202.16,4.9572]
[1739164506044,8.81871672,202.22,202.18,1.0]
[1739164506351,8.81871672,202.21,202.18,1.0]
[1739164506750,8.81871672,202.19,202.16,1.0]
[1739164507446,8.81871672,202.21,202.17,1.0]
[1739164507757,8.81871672,202.22,202.2,1.0]
[1739164508666,10.1595,202.29,202.22,1.0]
[1739164508667,8.81871672,202.25,202.22,1.0]
[1739164508961,8.81871672,202.28,202.26,1.0]
[1739164509659,8.84871672,202.29,202.28,1.0]
[1739164511443,0.03,202.29,202.28,14.77361672]
[1739164511663,0.03,202.29,202.28,34.65066525]
[1739164512736,0.03,202.29,202.28,2.0]
[1739164512943,0.03,202.29,202.28,1.0]
[1739164514551,8.84871672,202.29,202.28,1.0]
[1739164514754,0.03,202.29,202.28,1.0]
[1739164514949,0.03,202.29,202.25,1.0]
[1739164515250,8.81871672,202.27,202.25,1.0]
[1739164515457,8.81871672,202.27,202.25,2.0]
[1739164515661,8.81871672,202.28,202.25,2.0]
[1739164516058,8.84871672,202.29,202.25,2.0]
[1739164516373,8.84871672,202.29,202.27,1.0]
[1739164516663,0.03,202.29,202.27,2.0]
[1739164517247,0.03,202.29,202.27,10.81871672]
[1739164517666,0.03,202.29,202.27,5.9549]
[1739164518279,0.03,202.29,202.27,14.77361672]
[1739164518967,0.03,202.29,202.28,13.41184853]
[1739164519168,0.03,202.29,202.28,22.35605525]
[1739164519467,0.03,202.29,202.28,23.79936525]
[1739164519667,0.03,202.29,202.28,27.75426525]
[1739164519973,0.03,202.29,202.28,18.93554853]
[1739164520471,0.03,202.29,202.28,27.75426525]
[1739164521272,0.03,202.29,202.28,27.87975525]
[1739164522974,0.03,202.29,202.28,28.00524525]
[1739164523569,0.03,202.29,202.28,27.87975525]
[1739164525592,0.03,202.29,202.28,28.7465936]
[1739164525778,0.03,202.29,202.28,28.00524525]
[1739164526377,0.03,202.38,202.32,13.41184853]
[1739164526678,8.84871672,202.38,202.36,1.0]
[1739164527078,0.03,202.38,202.36,1.0]
[1739164527385,0.03,202.38,202.37,9.81871672]
[1739164527556,0.03,202.38,202.37,1.0]
[1739164528050,0.03,202.38,202.37,9.81871672]
[1739164529058,0.03,202.38,202.37,13.77181672]
[1739164529474,0.03,202.38,202.37,27.18366525]
[1739164529781,0.03,202.38,202.37,4.9531]
[1739164530683,0.03,202.38,202.37,13.77181672]
[1739164531063,0.03,202.38,202.37,4.9531]
[1739164532577,0.03,202.38,202.37,13.77181672]
[1739164533380,0.03,202.38,202.37,27.18366525]
[1739164534988,0.03,202.38,202.37,27.30915525]
[1739164535188,0.03,202.38,202.37,27.18366525]
[1739164536678,8.81871672,202.48,202.47,1.0]
[1739164536886,0.03,202.5,202.47,1.0]
[1739164537183,0.03,202.5,202.49,1.0]
[1739164537184,8.84871672,202.5,202.49,1.0]
[1739164537386,8.84871672,202.5,202.47,1.0]
[1739164537690,8.84871672,202.5,202.44,1.0]
[1739164537691,8.81871672,202.48,202.44,1.0]
[1739164537890,8.81871672,202.45,202.42,2.0]
[1739164538098,0.03,202.5,202.42,5.9521]
[1739164538099,8.81871672,202.46,202.42,5.9521]
[1739164538294,8.81871672,202.46,202.44,1.0]
[1739164538500,8.81871672,202.48,202.46,1.0]
[1739164538866,0.03,202.5,202.46,2.0]
[1739164538867,8.84871672,202.5,202.46,2.0]
[1739164539071,8.84871672,202.5,202.48,1.0]
[1739164539860,0.03,202.5,202.48,2.0]
[1739164541980,0.03,202.5,202.49,3.9508]
[1739164542186,0.03,202.5,202.48,5.951]
[1739164542495,0.03,202.5,202.48,14.76971672]
[1739164542680,0.03,202.5,202.48,10.81871672]
[1739164543972,0.03,202.5,202.49,22.23056525]
[1739164545206,0.03,202.5,202.49,8.81871672]
[1739164545404,0.03,202.5,202.48,2.0]
[1739164545887,0.03,202.5,202.48,5.9509]
[1739164547092,0.03,202.5,202.49,22.23056525]
[1739164548802,0.03,202.5,202.49,8.81871672]
[1739164549583,0.03,202.5,202.48,14.76961672]
[1739164550201,0.03,202.5,202.49,8.81871672]
[1739164550711,0.03,202.5,202.49,12.76951672]
[1739164552115,0.03,202.5,202.48,5.9509]
[1739164553107,0.03,202.5,202.48,14.76961672]
[1739164553311,0.03,202.5,202.49,8.81871672]
[1739164555196,0.03,202.5,202.49,26.18136525]
[1739164555405,8.81871672,202.64,202.59,1.0]
[1739164555708,20.0,202.63,202.53,1.0]
[1739164555915,20.0,202.63,202.51,2.0]
[1739164555916,1.6465,202.62,202.51,2.0]
[1739164556126,21.6465,202.62,202.49,1.0]
[1739164556295,6.0148,202.61,202.5,1.0]
[1739164556496,6.0148,202.61,202.47,1.0]
[1739164556804,8.81871672,202.48,202.44,1.0]
[1739164557001,8.81871672,202.46,202.42,2.0]
[1739164557506,8.81871672,202.46,202.44,2.0]
[1739164558616,8.81871672,202.47,202.44,2.0]
[1739164558918,8.81871672,202.45,202.41,1.0]
[1739164559089,8.81871672,202.48,202.41,1.0]
[1739164559090,8.81871672,202.43,202.41,1.0]
[1739164559297,8.81871672,202.42,202.39,1.0]
[1739164559814,8.81871672,202.4,202.39,1.0]
[1739164559988,8.81871672,202.4,202.38,0.063]
[1739164560196,8.81871672,202.39,202.38,0.063]
[1739164560592,12.77141672,202.39,202.38,0.063]
[1739164561195,20.0,202.36,202.29,0.063]
[1739164561400,8.81871672,202.3,202.29,0.063]
[1739164561914,7.6613,202.37,202.29,0.063]
[1739164562117,7.6613,202.37,202.31,1.0]
[1739164562319,8.81871672,202.33,202.31,1.0]
[1739164562615,8.81871672,202.32,202.29,0.063]
[1739164562817,8.81871672,202.3,202.29,0.063]
[1739164565193,3.9547,202.29,202.23,0.063]
[1739164565401,17.63743344,202.24,202.23,0.063]
[1739164565929,8.81871672,202.24,202.23,0.063]
[1739164566495,3.98549,202.3,202.24,1.0]
[1739164566496,8.81871672,202.26,202.24,1.0]
[1739164566796,8.81871672,202.25,202.23,0.063]
[1739164567000,8.81871672,202.24,202.23,0.063]
[1739164568923,8.81871672,202.29,202.26,1.0]
[1739164569129,8.81871672,202.29,202.27,1.0]
[1739164569438,3.86,202.36,202.24,1.0]
[1739164569439,8.81871672,202.28,202.24,1.0]
[1739164569612,8.81871672,202.28,202.23,1.063]
[1739164569613,8.81871672,202.25,202.23,0.063]
[1739164569808,13.41184853,202.31,202.23,0.063]
[1739164570049,0.12549,202.3,202.23,0.063]
[1739164570206,8.81871672,202.24,202.23,0.063]
[1739164571317,17.63743344,202.24,202.23,0.063]
[1739164571705,48.22788322,202.24,202.23,0.063]
[1739164571910,52.08788322,202.24,202.23,0.063]
[1739164572110,65.62522175,202.24,202.23,0.063]
[1739164572415,65.62522175,202.24,202.17,0.063]
[1739164572416,0.12549,202.23,202.17,0.063]
[1739164572615,14.11394161,202.18,202.17,0.063]
[1739164572814,28.22788322,202.18,202.17,0.063]
[1739164573322,14.11394161,202.18,202.17,0.063]
[1739164574613,28.22788322,202.18,202.17,0.063]
[1739164574814,34.50868322,202.18,202.17,0.063]
[1739164575121,3.957,202.17,202.1,1.0]
[1739164575321,14.11394161,202.11,202.1,1.0]
[1739164575540,14.11394161,202.12,202.1,1.0]
[1739164575838,14.11394161,202.15,202.13,1.0]
[1739164576426,14.11394161,202.14,202.13,1.0]
[1739164576814,14.11394161,202.14,202.1,2.0]
[1739164577008,14.11394161,202.11,202.1,1.0]
[1739164577209,14.11394161,202.11,202.08,1.0]
[1739164577443,14.11394161,202.16,202.08,1.0]
[1739164577444,14.11394161,202.09,202.08,1.0]
[1739164578328,14.11394161,202.1,202.08,2.0]
[1739164579435,14.11394161,202.12,202.1,1.0]
[1739164579623,14.11394161,202.13,202.1,2.0]
[1739164580352,14.11394161,202.12,202.1,1.0]
[1739164580644,14.11394161,202.11,202.08,1.0]
[1739164580846,14.11394161,202.09,202.08,1.0]
[1739164581640,14.11394161,202.1,202.08,1.0]
[1739164582359,14.11394161,202.11,202.08,1.0]
[1739164582658,14.11394161,202.12,202.08,1.0]
[1739164582841,14.11394161,202.12,202.1,1.0]
[1739164583436,14.11394161,202.11,202.08,2.0]
[1739164583639,14.11394161,202.11,202.08,1.0]
[1739164583839,14.11394161,202.09,202.08,1.063]
[1739164584748,14.11394161,202.1,202.08,2.063]
[1739164584948,14.11394161,202.16,202.1,1.0]
[1739164584949,14.11394161,202.13,202.1,1.0]
[1739164585253,14.11394161,202.15,202.12,2.0]
[1739164585454,14.11394161,202.13,202.1,2.0]
[1739164585660,14.11394161,202.12,202.1,2.0]
[1739164586557,14.11394161,202.11,202.1,1.0]
[1739164586768,14.11394161,202.11,202.08,2.063]
[1739164586961,14.11394161,202.1,202.08,2.063]
[1739164590147,14.11394161,202.16,202.1,1.0]
[1739164590148,14.11394161,202.13,202.1,1.0]
[1739164590461,14.11394161,202.13,202.1,2.0]
[1739164591559,14.11394161,202.14,202.12,1.0]
[1739164591863,8.82446708,202.27,202.25,1.0]
[1739164592165,8.82446708,202.26,202.22,1.0]
[1739164592345,8.82446708,202.24,202.22,1.0]
[1739164592552,12.77866708,202.32,202.23,1.0]
[1739164592751,8.82446708,202.26,202.23,1.0]
[1739164592951,12.77866708,202.32,202.25,1.0]
[1739164592952,8.82446708,202.27,202.25,1.0]
[1739164593171,8.82446708,202.28,202.25,1.0]
[1739164593667,14.0997628,202.28,202.25,1.0]
[1739164593843,14.0997628,202.27,202.25,1.0]
[1739164594046,14.0997628,202.27,202.24,1.0]
[1739164594367,14.0997628,202.25,202.23,1.0]
[1739164594572,14.0997628,202.26,202.23,1.0]
[1739164594876,14.0997628,202.28,202.25,1.0]
[1739164595044,14.0997628,202.28,202.24,1.0]
[1739164595345,14.0997628,202.26,202.24,1.0]
[1739164595672,14.0997628,202.27,202.24,1.0]
[1739164595853,14.0997628,202.26,202.23,1.0]
[1739164597573,14.0997628,202.3,202.25,1.0]
[1739164597777,14.0997628,202.26,202.23,1.0]
[1739164598073,14.0997628,202.32,202.22,1.0]
[1739164598074,14.0997628,202.25,202.22,1.0]
[1739164598680,14.0997628,202.23,202.2,1.0]
[1739164598887,14.0997628,202.24,202.21,1.0]
[1739164599064,14.0997628,202.32,202.23,1.0]
[1739164599065,14.0997628,202.27,202.23,1.0]
[1739164599264,14.0997628,202.27,202.24,1.0]